bitfinex/quotes_ETHUSD_20240828
["timestamp","ask_amount","ask_price","bid_price","bid_amount"]
[1724845341584,1.81008023,2529.7,2529.5,0.1768439]
[1724845341717,1.81008023,2529.7,2529.3,2.3816]
[1724845341919,1.81008023,2529.7,2529.4,0.1768439]
[1724845342126,1.81008023,2529.7,2529.3,2.3816]
[1724845342301,1.81008023,2529.7,2529.5,0.17694953]
[1724845342507,1.81008023,2529.7,2529.3,2.3816]
[1724845342746,1.81008023,2529.7,2529.6,0.17694953]
[1724845343044,2.29108825,2529.7,2528.9,2.4454]
[1724845343214,1.7596861,2529.5,2528.9,2.4454]
[1724845343413,0.05039413,2529.4,2528.9,2.4454]
[1724845343740,1.7596861,2529.5,2529.1,2.4323]
[1724845344349,1.7596861,2529.7,2529.2,0.07906799]
[1724845344546,1.7596861,2529.7,2528.8,2.7963934]
[1724845344547,1.7596861,2529.7,2529.3,2.4323]
[1724845347046,0.05039413,2529.8,2529.3,2.4323]
[1724845347249,4.81008023,2529.9,2529.5,2.3001]
[1724845347542,4.81008023,2529.9,2529.6,0.23791605]
[1724845347763,7.8077141,2530.0,2529.6,0.23791605]
[1724845347764,5.0,2530.0,2529.7,0.07906049]
[1724845347922,5.0,2530.0,2529.8,2.3007]
[1724845348245,5.0,2530.0,2529.9,2.3007]
[1724845348423,5.0,2530.0,2529.9,2.53077]
[1724845349948,5.0,2530.0,2529.9,2.60981415]
[1724845350445,5.0,2530.0,2529.9,2.70701873]
[1724845351239,5.0,2530.0,2529.9,2.47694873]
[1724845351765,5.0,2530.0,2529.9,0.17624873]
[1724845352254,5.0,2530.0,2529.9,0.17595125]
[1724845352451,5.0,2530.0,2529.6,2.3191]
[1724845352612,5.0,2530.0,2529.9,0.17514487]
[1724845352827,5.0,2530.0,2529.6,2.3191]
[1724845353031,5.0,2530.0,2529.9,0.17527921]
[1724845353273,5.0,2530.0,2529.6,2.55101]
[1724845353444,5.0,2530.0,2529.9,0.17527921]
[1724845353640,5.0,2530.0,2529.9,2.4529]
[1724845353926,5.0,2530.0,2529.9,2.62817921]
[1724845354156,5.0,2530.0,2529.9,2.89099713]
[1724845354863,5.0,2530.0,2529.9,0.17527921]
[1724845355035,5.0,2530.0,2529.7,2.4709]
[1724845355230,5.0,2530.0,2529.9,0.16973577]
[1724845355543,5.0,2530.0,2529.7,2.4709]
[1724845355746,5.0,2530.0,2529.9,0.16973577]
[1724845356234,5.5,2530.0,2529.2,2.4709]
[1724845356435,5.0,2530.0,2529.9,0.16971658]
[1724845356632,5.0,2530.0,2529.2,2.4709]
[1724845356861,5.0,2530.0,2529.9,0.16971658]
[1724845357031,5.0,2530.0,2529.6,2.4709]
[1724845357236,5.0,2530.0,2529.9,0.16971658]
[1724845357444,5.0,2530.0,2529.6,2.4709]
[1724845357646,5.0,2530.0,2529.9,0.16971658]
[1724845357864,5.0,2530.0,2529.6,2.4709]
[1724845358063,5.0,2530.0,2529.9,0.16971658]
[1724845358370,5.0,2530.0,2529.6,2.4709]
[1724845358544,5.0,2530.0,2529.6,2.71799]
[1724845358754,5.0,2530.0,2529.7,0.16971658]
[1724845360398,0.05039413,2529.9,2529.7,0.16971658]
[1724845360600,0.05039413,2529.9,2529.4,2.3309]
[1724845360898,2.42749413,2529.9,2529.8,0.16544992]
[1724845361057,2.93253354,2529.9,2529.4,2.3309]
[1724845361259,2.42749413,2529.9,2529.8,0.16544992]
[1724845361484,2.42749413,2529.9,2529.4,2.3309]
[1724845361704,2.42749413,2529.9,2529.8,0.16544992]
[1724845361913,2.42749413,2529.9,2529.4,2.3309]
[1724845362084,2.42749413,2529.9,2529.0,2.3313]
[1724845362085,0.74274941,2529.8,2529.0,2.3313]
[1724845362401,0.05039413,2529.7,2529.0,2.3313]
[1724845362697,0.05039413,2529.7,2529.1,0.16572823]
[1724845364129,0.78940313,2529.7,2529.1,0.16572823]
[1724845364257,5.00924961,2529.7,2529.1,0.16572823]
[1724845367367,0.78940313,2529.7,2529.1,0.16572823]
[1724845368908,4.21984648,2529.3,2529.1,0.16572823]
[1724845369109,0.05039413,2529.2,2529.1,0.16572823]
[1724845369407,0.05039413,2529.4,2528.7,0.07908328]
[1724845369614,0.05039413,2529.4,2529.1,0.16113805]
[1724845369785,0.05039413,2529.4,2528.6,2.4532]
[1724845369980,0.05039413,2529.4,2528.7,0.2402216]
[1724845374190,0.05039413,2529.4,2528.8,2.3342]
[1724845374599,0.05039413,2529.4,2528.9,0.16113805]
[1724845375492,2.35989413,2529.5,2528.9,0.16113805]
[1724845376099,2.93881407,2529.5,2528.9,0.16113805]
[1724845379495,2.93881407,2529.5,2528.8,2.3342]
[1724845379719,2.93881407,2529.5,2529.0,0.16113805]
[1724845379928,2.93881407,2529.5,2528.5,0.41177395]
[1724845380262,0.57465282,2529.4,2528.6,2.55153805]
[1724845380528,0.05039413,2529.3,2528.6,2.55153805]
[1724845381038,2.3095,2529.5,2528.6,2.55153805]
[1724845381204,0.05039413,2529.4,2528.8,2.3202]
[1724845381405,0.05039413,2529.4,2528.8,2.39927564]
[1724845381599,0.05039413,2529.5,2528.9,0.16113805]
[1724845381943,2.8077141,2529.6,2529.0,2.39927361]
[1724845382435,2.85810823,2529.6,2529.1,0.16113805]
[1724845382609,1.05713513,2529.6,2529.1,0.16113805]
[1724845383394,0.05039413,2529.6,2529.1,0.16113805]
[1724845386238,1.75994894,2529.5,2529.1,0.16113805]
[1724845386540,0.05039413,2529.4,2529.1,0.16113805]
[1724845386904,0.05039413,2529.4,2528.8,2.3277]
[1724845387109,0.05039413,2529.4,2529.2,0.16125302]
[1724845387418,0.05039413,2529.4,2529.3,0.16125302]
[1724845387748,0.05039413,2529.4,2528.8,2.3277]
[1724845388241,0.05039413,2529.4,2528.9,0.16125302]
[1724845389242,1.81034307,2529.5,2528.9,0.16125302]
[1724845389403,1.81034307,2529.5,2528.9,0.4356637]
[1724845389908,1.75994894,2529.5,2529.0,2.4964]
[1724845390146,1.75994894,2529.5,2529.0,2.65777756]
[1724845391214,1.75994894,2529.5,2529.1,0.07907221]
[1724845391447,4.10744307,2529.7,2529.1,0.24042103]
[1724845392451,4.10744307,2529.7,2529.1,0.16134882]
[1724845392655,4.59246232,2529.7,2529.1,0.16134882]
[1724845393362,1.75994894,2529.5,2529.1,0.16134882]
[1724845394654,1.75994894,2529.3,2529.1,0.16134882]
[1724845395153,1.81034307,2529.5,2528.8,2.3256]
[1724845395314,1.81034307,2529.5,2529.2,0.16126258]
[1724845395514,1.81034307,2529.5,2528.8,2.3256]
[1724845396156,1.81034307,2529.5,2528.9,0.16126258]
[1724845401543,4.61805717,2529.7,2529.0,2.37147471]
[1724845401972,4.61805717,2529.7,2529.1,2.4537009]
[1724845402647,4.61805717,2529.7,2529.2,0.07906816]
[1724845402847,4.61805717,2529.7,2529.3,2.4254]
[1724845404593,4.61805717,2529.7,2529.4,0.1613009]
[1724845406292,1.81034307,2529.7,2529.4,0.1613009]
[1724845406471,1.75994894,2529.7,2529.4,0.1613009]
[1724845407575,5.0,2530.0,2529.4,0.49903921]
[1724845407777,6.75994894,2530.0,2529.5,2.4254]
[1724845408489,6.75994894,2530.0,2529.6,0.16112241]
[1724845408817,6.75994894,2530.0,2529.6,0.26655906]
[1724845409194,6.75994894,2530.0,2529.7,0.16110325]
[1724845410012,1.75994894,2529.8,2529.7,0.16110325]
[1724845410507,1.75994894,2529.8,2529.7,0.16088294]
[1724845410717,1.75994894,2529.8,2529.3,2.4036]
[1724845410877,0.05039413,2529.7,2529.3,2.4036]
[1724845411212,0.05039413,2529.7,2529.4,0.16088294]
[1724845412207,1.75994894,2529.6,2529.4,0.16088294]
[1724845413116,1.75994894,2529.6,2529.1,2.4036]
[1724845413320,1.75994894,2529.6,2529.2,0.16088294]
[1724845413680,1.75994894,2529.6,2529.3,2.4036]
[1724845414098,1.75994894,2529.6,2529.4,0.16088294]
[1724845414903,1.81034307,2529.6,2529.1,2.4036]
[1724845415112,1.81034307,2529.6,2529.2,0.16088294]
[1724845416121,1.75994894,2529.6,2529.2,0.16088294]
[1724845419741,0.05039413,2529.5,2529.2,0.16088294]
[1724845420026,1.75994894,2529.4,2529.2,0.16088294]
[1724845420238,0.05039413,2529.3,2529.2,0.16088294]
[1724845420554,0.05039413,2529.3,2528.9,2.3964]
[1724845420828,1.75994894,2529.2,2528.9,2.3964]
[1724845421331,1.75994894,2529.2,2528.6,2.3964]
[1724845421516,1.75994894,2529.2,2528.7,1.37618931]
[1724845421721,1.75994894,2529.2,2528.6,2.3964]
[1724845421919,1.75994894,2529.2,2528.7,1.37616685]
[1724845422089,1.75994894,2529.2,2528.6,2.3964]
[1724845422293,1.75994894,2529.2,2528.7,1.37617691]
[1724845422488,1.75994894,2529.2,2528.6,2.3964]
[1724845422691,1.75994894,2529.2,2528.7,1.37616788]
[1724845422998,1.75994894,2529.2,2528.6,3.6727473]
[1724845423204,1.75994894,2529.2,2528.7,3.44027643]
[1724845423399,1.75994894,2529.2,2528.6,3.6727473]
[1724845423720,1.75994894,2529.2,2528.7,3.4403023]
[1724845423896,1.75994894,2529.2,2528.6,2.84338146]
[1724845424091,1.75994894,2529.2,2528.7,1.37616421]
[1724845424449,2.45159413,2529.1,2528.6,2.3964]
[1724845424593,1.75994894,2528.8,2528.3,2.4502]
[1724845424790,1.75994894,2528.6,2528.3,2.4502]
[1724845425328,1.75994894,2528.6,2528.4,0.15787128]
[1724845425539,1.75994894,2528.6,2528.1,2.4502]
[1724845425540,1.75994894,2528.6,2528.1,2.65754146]
[1724845425834,1.75994894,2528.6,2528.2,1.53281174]
[1724845426030,1.75994894,2528.6,2528.2,0.15638336]
[1724845426745,0.05039413,2529.0,2528.3,2.3064]
[1724845426935,1.75994894,2528.9,2528.3,2.3064]
[1724845427120,2.3831,2528.8,2528.4,0.15638336]
[1724845427432,1.75994894,2528.7,2528.4,0.15638336]
[1724845427592,1.75994894,2528.7,2528.1,2.51374146]
[1724845427795,1.75994894,2528.7,2528.5,0.15638336]
[1724845428011,1.75994894,2528.7,2528.1,2.51374146]
[1724845428208,1.75994894,2528.7,2528.6,0.15638336]
[1724845428723,1.81034307,2528.7,2528.1,2.3064]
[1724845429053,1.81034307,2528.7,2528.2,0.15638336]
[1724845430549,1.75994894,2528.5,2528.2,0.15638336]
[1724845430738,1.75994894,2528.5,2527.9,2.38549869]
[1724845431047,1.75994894,2528.5,2528.0,0.49169768]
[1724845431241,0.05039413,2528.4,2528.0,0.49169768]
[1724845431848,1.75994894,2528.5,2528.0,0.49169768]
[1724845432049,2.43349413,2529.0,2528.2,2.3064]
[1724845432209,0.05039413,2529.0,2528.3,2.38549329]
[1724845432414,0.57451495,2529.0,2528.3,2.38549329]
[1724845432743,7.0338095,2529.1,2528.4,0.07909333]
[1724845432744,2.8077141,2529.1,2528.4,0.07909333]
[1724845432954,2.8077141,2529.1,2528.4,2.3064]
[1724845433153,2.8077141,2529.1,2528.6,2.3064]
[1724845433541,0.05039413,2529.0,2528.6,2.3064]
[1724845434047,2.85810823,2529.1,2528.6,2.3064]
[1724845434213,2.8077141,2529.1,2528.7,0.07908214]
[1724845434648,2.8077141,2529.1,2528.6,2.3064]
[1724845434814,2.8077141,2529.1,2528.7,0.07908273]
[1724845435417,3.08848551,2529.1,2528.6,2.3064]
[1724845435861,0.05039413,2529.0,2528.6,2.3064]
[1724845437551,0.33116554,2529.1,2528.6,2.3064]
[1724845438656,0.28077141,2529.1,2528.6,2.3064]
[1724845438861,0.05039413,2529.0,2528.5,2.3591]
[1724845440126,0.05039413,2529.0,2528.6,0.15775347]
[1724845440436,0.05039413,2529.0,2528.5,2.3591]
[1724845440641,0.05039413,2529.0,2527.9,0.82936584]
[1724845440847,0.71832308,2529.0,2528.6,0.15775347]
[1724845441051,0.71832308,2529.0,2528.5,2.3591]
[1724845441246,0.71832308,2529.0,2528.7,0.15762889]
[1724845441447,0.71832308,2529.0,2528.6,0.15763847]
[1724845441638,0.73472185,2528.9,2528.5,2.3591]
[1724845442053,2.45319413,2529.3,2528.6,0.15765764]
[1724845442426,0.05039413,2529.2,2528.6,0.15765764]
[1724845442623,0.99909449,2529.2,2528.7,2.4378]
[1724845442919,0.05039413,2529.3,2528.8,0.15764806]
[1724845443123,0.05039413,2529.3,2528.7,2.4378]
[1724845443440,0.05039413,2529.3,2528.8,0.15764806]
[1724845444124,4.27648953,2529.3,2528.8,0.15764806]
[1724845444324,0.05039413,2529.2,2528.7,2.4378]
[1724845444522,0.05039413,2529.2,2528.8,0.15750431]
[1724845444739,0.75881449,2529.2,2528.8,0.15750431]
[1724845445669,0.70842036,2529.2,2528.9,2.4378]
[1724845446325,2.85810823,2529.4,2528.9,2.4378]
[1724845448064,7.08420363,2529.4,2528.9,2.4378]
[1724845448268,2.3723,2529.3,2528.3,2.3319]
[1724845448467,0.99604449,2529.2,2528.5,2.3319]
[1724845448971,0.99604449,2529.2,2528.6,0.15738933]
[1724845451075,2.3723,2529.1,2528.6,0.15738933]
[1724845451236,0.05039413,2529.0,2528.5,2.3319]
[1724845451576,0.38722858,2529.0,2528.2,2.3319]
[1724845451869,0.38722858,2529.0,2528.3,0.15741807]
[1724845453866,0.38722858,2529.0,2528.4,0.15741807]
[1724845454259,0.38722858,2529.0,2528.2,2.3319]
[1724845454459,0.38722858,2529.0,2528.5,0.15741807]
[1724845454648,0.38722858,2529.0,2528.2,2.3319]
[1724845454844,2.3723,2528.9,2528.6,0.15741807]
[1724845455035,0.32634699,2528.8,2528.2,2.3319]
[1724845455548,0.32634699,2528.8,2528.3,0.15528031]
[1724845455770,0.32634699,2528.8,2528.2,2.3319]
[1724845456075,0.32634699,2528.8,2528.3,0.15528031]
[1724845456569,0.32634699,2528.8,2528.4,0.1501043]
[1724845456886,0.32634699,2528.8,2528.2,2.3319]
[1724845457031,0.32634699,2528.8,2528.5,0.1501043]
[1724845457351,0.32634699,2528.8,2528.6,0.1501043]
[1724845457678,0.32634699,2528.8,2528.2,2.3319]
[1724845458052,0.32634699,2528.8,2528.3,0.1501043]
[1724845458485,6.5983954,2528.7,2527.9,2.3319]
[1724845458652,0.05039413,2528.6,2528.4,0.1501043]
[1724845458971,0.05039413,2528.6,2527.9,2.3319]
[1724845459177,0.99604449,2528.6,2528.0,0.1501043]
[1724845459939,0.05039413,2528.6,2528.0,0.1501043]
[1724845460139,0.03989845,2528.6,2528.1,2.3319]
[1724845460554,0.03989845,2528.6,2528.2,0.1501043]
[1724845461487,0.03989845,2528.6,2528.0,2.3319]
[1724845461654,0.56188971,2528.6,2528.3,0.1501043]
[1724845461852,0.56188971,2528.6,2528.0,2.3319]
[1724845462050,0.03989845,2528.6,2528.0,2.3319]
[1724845462279,0.03989845,2528.6,2528.1,0.1501043]
[1724845463241,0.03989845,2528.7,2528.2,2.41100239]
[1724845463463,2.84761255,2528.8,2528.3,0.25611067]
[1724845463674,0.03989845,2528.9,2528.4,2.41099522]
[1724845463879,0.03989845,2528.9,2528.4,2.56109952]
[1724845464061,0.03989845,2528.9,2528.4,2.3319]
[1724845464267,2.84761255,2529.2,2528.6,2.3319]
[1724845464587,2.84761255,2529.2,2528.5,4.3761997]
[1724845464588,2.8077141,2529.6,2528.7,2.41098076]
[1724845464746,2.8077141,2529.6,2528.8,0.1501043]
[1724845464747,0.03989845,2529.5,2528.8,0.1501043]
[1724845467060,4.26599385,2529.5,2528.8,0.1501043]
[1724845467368,2.8077141,2529.6,2529.0,4.2260954]
[1724845467571,5.0,2530.0,2529.4,4.2260954]
[1724845467744,5.0,2530.0,2528.8,3.58160368]
[1724845467745,5.0,2530.0,2529.5,2.41095144]
[1724845467946,5.0,2530.0,2529.6,0.3912857]
[1724845468878,0.03989845,2529.9,2529.6,0.15019056]
[1724845469076,4.26599385,2529.9,2529.6,0.15019056]
[1724845469594,4.26599385,2529.9,2529.7,0.14976904]
[1724845469896,0.03989845,2529.9,2529.2,0.07906784]
[1724845470189,0.03989845,2529.9,2529.2,0.61225784]
[1724845470356,0.03989845,2529.9,2529.3,0.14950087]
[1724845472488,0.03989845,2529.9,2529.2,0.53319]
[1724845472660,0.03989845,2529.9,2529.1,2.3319]
[1724845473172,0.03989845,2529.9,2529.2,0.14968284]
[1724845477703,0.03989845,2529.9,2529.2,0.22875239]
[1724845477995,0.03989845,2529.9,2529.2,0.14968284]
[1724845478592,2.3292,2529.8,2529.2,0.14968284]
[1724845478764,2.3292,2529.8,2529.2,0.39784112]
[1724845478765,0.03989845,2529.7,2529.2,0.39784112]
[1724845483911,0.03989845,2529.7,2529.2,0.14968284]
[1724845484204,0.03989845,2529.7,2528.9,5.2796]
[1724845484359,0.03989845,2529.7,2529.0,0.14887798]
[1724845484564,4.26599385,2529.7,2529.0,0.14887798]
[1724845485416,6.5552954,2529.1,2529.0,0.14887798]
[1724845485616,7.25072339,2529.1,2527.9,2.89335539]
[1724845485907,4.2260954,2528.6,2527.8,2.4019733]
[1724845486103,0.03989845,2528.5,2528.0,0.13883986]
[1724845486309,0.03989845,2528.5,2527.8,2.4019733]
[1724845486612,0.03989845,2528.5,2527.9,0.24019733]
[1724845486804,0.03989845,2528.5,2527.9,0.37903719]
[1724845486966,0.03989845,2528.7,2527.9,0.37903719]
[1724845488400,0.03989845,2528.9,2527.9,0.37903719]
[1724845490821,4.2260954,2528.8,2527.9,0.37903719]
[1724845491005,0.03989845,2528.7,2527.9,0.13883986]
[1724845491580,0.03989845,2528.7,2527.9,0.21794621]
[1724845491974,0.03989845,2528.9,2527.9,0.21794621]
[1724845492289,0.03989845,2528.9,2528.1,2.2796]
[1724845492614,2.84761255,2529.0,2528.2,0.21984881]
[1724845492767,2.84761255,2529.0,2528.2,0.14075623]
[1724845492965,2.84761255,2529.0,2528.2,0.38279185]
[1724845493594,2.3292,2528.9,2528.2,0.38279185]
[1724845493792,0.03989845,2528.8,2528.2,0.38279185]
[1724845494573,0.03989845,2528.8,2528.2,0.46189003]
[1724845494880,0.03989845,2528.8,2528.2,0.38279185]
[1724845495206,2.36909845,2528.9,2528.3,0.07909822]
[1724845495380,2.36909845,2528.9,2528.3,0.27414901]
[1724845495590,2.36909845,2528.9,2528.4,0.14075623]
[1724845495786,2.3292,2528.9,2528.1,2.2796]
[1724845496108,0.03989845,2528.8,2528.2,0.14075623]
[1724845496285,0.03989845,2528.8,2528.2,0.38279185]
[1724845496826,0.03989845,2528.8,2528.2,0.14075623]
[1724845497011,4.2260954,2528.6,2528.2,0.14075623]
[1724845497212,0.03989845,2528.5,2527.8,0.1223733]
[1724845497812,0.03989845,2528.5,2527.9,0.14055495]
[1724845498225,2.3292,2528.7,2528.0,2.2796]
[1724845498518,2.3292,2528.7,2528.1,0.07910208]
[1724845498679,2.3292,2528.7,2528.1,0.21985831]
[1724845499383,0.03989845,2528.6,2528.1,0.14075623]
[1724845500317,0.03989845,2528.6,2527.8,3.20148051]
[1724845500518,0.03989845,2528.6,2528.2,0.14075623]
[1724845500725,0.03989845,2528.6,2527.8,3.20148051]
[1724845500886,0.03989845,2528.6,2528.3,0.14075623]
[1724845501080,0.03989845,2528.6,2527.8,3.20148051]
[1724845501311,0.03989845,2528.6,2527.8,0.67048135]
[1724845501511,0.03989845,2528.6,2527.9,0.14075623]
[1724845504411,5.1369141,2528.7,2528.0,0.07910654]
[1724845504603,2.8077141,2528.7,2528.1,0.14069715]
[1724845504817,0.03989845,2528.6,2528.1,0.14069715]
[1724845505035,0.03989845,2528.6,2527.8,2.95008135]
[1724845505248,0.03989845,2528.6,2528.2,0.14069715]
[1724845505696,2.36909845,2528.6,2527.9,0.29500814]
[1724845505893,2.8077141,2528.7,2528.3,0.14069715]
[1724845506124,2.84761255,2528.7,2528.0,0.07910574]
[1724845506426,2.84761255,2528.7,2528.1,0.14069715]
[1724845506629,2.8077141,2528.7,2528.1,0.14069715]
[1724845506942,2.8077141,2528.7,2528.2,0.0790995]
[1724845507291,0.03989845,2528.8,2528.2,0.0790995]
[1724845507604,0.03989845,2528.8,2528.3,0.14069715]
[1724845507939,0.03989845,2528.8,2528.2,2.5560995]
[1724845508229,0.03989845,2528.8,2528.4,0.14069715]
[1724845508389,2.36909845,2528.9,2528.3,0.33470675]
[1724845508597,2.8077141,2529.0,2528.4,0.14069715]
[1724845508903,2.8077141,2529.0,2528.4,0.51502741]
[1724845509329,5.1297141,2529.5,2528.5,2.477]
[1724845509496,0.03989845,2529.4,2528.6,0.80089358]
[1724845509809,0.03989845,2529.4,2528.7,0.14069715]
[1724845511450,0.03989845,2529.4,2528.8,0.07908028]
[1724845511666,0.03989845,2529.4,2528.9,2.477]
[1724845512021,0.03989845,2529.4,2529.0,0.14069715]
[1724845512364,0.03989845,2529.4,2528.3,5.477]
[1724845512365,4.2260954,2529.2,2528.3,5.477]
[1724845512554,0.03989845,2529.1,2528.3,2.477]
[1724845512753,0.03989845,2529.1,2528.4,3.21978801]
[1724845513062,0.03989845,2529.1,2528.5,0.5696788]
[1724845513264,0.03989845,2529.1,2528.4,3.21978801]
[1724845513562,0.03989845,2529.4,2528.5,2.477]
[1724845513764,2.84761255,2529.5,2528.6,0.63468854]
[1724845514263,2.84761255,2529.5,2528.7,0.14069715]
[1724845514437,2.84761255,2529.5,2528.8,0.07907648]
[1724845514644,3.78718335,2529.5,2528.8,0.07907648]
[1724845515271,3.78718335,2529.5,2528.9,0.14069715]
[1724845516366,0.9395708,2529.5,2529.0,2.477]
[1724845516570,0.03989845,2529.5,2529.0,2.477]
[1724845517065,0.03989845,2529.6,2529.1,0.14069715]
[1724845517722,0.5077386,2530.4,2529.1,0.14069715]
[1724845517723,7.8077141,2530.0,2529.2,2.477]
[1724845517926,0.03989845,2529.9,2529.3,0.07906222]
[1724845518160,0.03989845,2529.9,2529.3,0.14009335]
[1724845518350,2.322,2529.8,2529.3,0.14009335]
[1724845518590,0.03989845,2529.7,2529.2,2.477]
[1724845518742,0.03989845,2529.7,2529.3,0.14009335]
[1724845518946,0.03989845,2529.7,2529.2,2.477]
[1724845519285,0.03989845,2529.7,2529.3,0.13922136]
[1724845519639,4.5021837,2529.7,2528.9,2.477]
[1724845520188,4.5021837,2529.7,2529.0,0.13922136]
[1724845520969,0.2760883,2529.7,2529.0,0.13922136]
[1724845521355,2.322,2529.6,2529.0,0.13922136]
[1724845521556,4.26599385,2529.5,2529.0,0.13922136]
[1724845521756,4.26599385,2529.5,2528.4,5.477]
[1724845521959,2.8077141,2529.4,2529.1,0.13919263]
[1724845522155,0.74726925,2529.3,2528.4,2.477]
[1724845522561,0.74726925,2529.3,2528.5,0.13919263]
[1724845522762,0.03989845,2529.3,2528.5,0.13919263]
[1724845525193,2.36189845,2529.3,2528.5,0.13919263]
[1724845528064,4.2260954,2529.1,2528.5,0.13919263]
[1724845528384,0.03989845,2529.0,2528.5,0.13919263]
[1724845529249,0.03989845,2529.2,2528.5,0.13919263]
[1724845529452,0.9754794,2529.2,2528.5,0.13919263]
[1724845530195,2.322,2529.0,2528.5,0.13919263]
[1724845530489,0.03989845,2528.9,2528.1,2.477]
[1724845530870,0.03989845,2528.9,2528.2,0.13608413]
[1724845531504,4.26599385,2528.9,2528.2,0.13608413]
[1724845531655,0.9395708,2528.8,2528.2,0.13608413]
[1724845531989,0.9395708,2528.8,2527.9,2.477]
[1724845531990,0.03989845,2528.7,2527.9,2.477]
[1724845532352,0.03989845,2528.7,2528.0,0.19515105]
[1724845534210,0.03989845,2528.7,2528.1,2.55610739]
[1724845534409,0.03989845,2528.8,2528.2,0.47042875]
[1724845536219,0.03989845,2528.9,2528.2,0.54952767]
[1724845536393,0.03989845,2528.9,2528.3,2.77965277]
[1724845536592,0.03989845,2528.9,2528.4,0.19523432]
[1724845538229,0.03989845,2528.9,2528.5,2.477]
[1724845538385,0.03989845,2528.9,2528.6,0.19509863]
[1724845539084,2.8077141,2529.0,2528.7,2.4468]
[1724845539284,2.8077141,2529.0,2528.8,0.26418986]
[1724845539523,2.8077141,2529.0,2528.8,0.1950588]
[1724845542091,0.03989845,2528.9,2528.8,0.1950588]
[1724845542431,0.03989845,2528.9,2528.4,2.4468]
[1724845542601,0.03989845,2528.9,2528.5,0.19487898]
[1724845542801,0.03989845,2528.9,2528.4,2.4468]
[1724845543014,0.74726925,2528.9,2528.4,2.4468]
[1724845544838,0.74726925,2528.9,2528.5,0.19517607]
[1724845545022,2.84761255,2529.0,2528.5,0.19517607]
[1724845546258,0.03989845,2528.9,2528.5,0.19517607]
[1724845549443,2.84761255,2529.0,2528.5,0.19517607]
[1724845549848,2.84761255,2529.0,2528.5,0.46728299]
[1724845550338,2.8077141,2529.0,2528.5,0.19517607]
[1724845550736,2.8077141,2529.0,2528.3,0.07908978]
[1724845550935,2.8077141,2529.0,2528.6,0.19506031]
[1724845551147,0.03989845,2528.9,2528.2,0.07909172]
[1724845551452,0.03989845,2528.9,2528.2,0.59254702]
[1724845551658,0.03989845,2528.9,2528.3,0.18856789]
[1724845552482,0.03989845,2528.9,2528.3,0.26766457]
[1724845554778,2.8077141,2529.0,2528.3,0.26766457]
[1724845555087,0.03989845,2529.3,2528.3,0.26766457]
[1724845555247,0.03989845,2529.3,2528.3,1.15132268]
[1724845561299,0.03989845,2529.3,2528.4,2.06417741]
[1724845561590,2.8077141,2529.7,2528.8,4.2260954]
[1724845561746,5.0,2530.0,2528.8,4.2260954]
[1724845561747,5.0,2530.0,2528.9,0.42260954]
[1724845561946,4.26599385,2529.9,2528.9,0.61121128]
[1724845562156,4.26599385,2529.9,2528.9,0.18860174]
[1724845562612,4.26599385,2529.9,2528.7,2.06396022]
[1724845562907,5.19259324,2529.9,2528.8,1.20054463]
[1724845563109,5.19259324,2529.9,2528.8,4.20054463]
[1724845563260,0.03989845,2529.9,2528.9,1.45494566]
[1724845563601,0.03989845,2529.9,2528.9,0.07907274]
[1724845563760,0.03989845,2529.9,2529.0,0.18860099]
[1724845563960,4.51517898,2530.0,2529.1,0.07906648]
[1724845564355,4.51517898,2530.0,2529.2,0.18859949]
[1724845564563,4.51517898,2530.0,2529.3,0.07906649]
[1724845564761,4.51517898,2530.0,2529.4,4.2260954]
[1724845565062,4.51517898,2530.0,2529.5,0.07905119]
[1724845565564,4.51517898,2530.0,2529.6,0.18787791]
[1724845566065,4.51517898,2530.0,2529.7,0.18703413]
[1724845566489,4.51517898,2530.0,2529.0,12.82196124]
[1724845566695,4.51517898,2530.0,2529.1,6.55822598]
[1724845566871,4.51517898,2530.0,2529.1,5.36917776]
[1724845569700,4.51517898,2530.0,2529.2,4.2260954]
[1724845570340,4.51517898,2530.0,2529.3,0.1866732]
[1724845570638,4.171,2529.4,2528.3,2.06474616]
[1724845570863,4.2260954,2528.4,2527.2,2.48805246]
[1724845571070,0.42260954,2528.3,2526.8,5.64767095]
[1724845571364,4.2260954,2528.1,2526.8,2.0651991]
[1724845571564,4.2260954,2528.1,2526.6,2.89456494]
[1724845571876,4.2260954,2528.1,2526.7,5.13459121]
[1724845572864,4.2260954,2528.1,2526.7,4.30522537]
[1724845573066,4.2260954,2528.1,2526.8,3.0]
[1724845573252,2.443,2528.0,2527.3,2.4757]
[1724845573627,2.443,2528.0,2527.4,0.07912394]
[1724845574250,2.443,2528.0,2527.3,2.4757]
[1724845575162,2.443,2528.0,2527.4,0.07912396]
[1724845575466,6.6690954,2528.4,2527.8,2.5980733]
[1724845575637,0.66690954,2528.3,2527.8,2.5980733]
[1724845575817,0.66690954,2528.3,2527.8,0.1223733]
[1724845580041,4.2260954,2528.2,2527.8,0.1223733]
[1724845580246,2.443,2528.1,2527.8,0.1223733]
[1724845580554,2.443,2528.1,2527.9,0.15601485]
[1724845585684,4.2260954,2528.2,2527.9,0.15601485]
[1724845585891,4.2260954,2528.2,2527.8,2.5980733]
[1724845586089,0.42260954,2528.1,2527.8,2.5980733]
[1724845586322,0.42260954,2528.1,2527.9,0.15590965]
[1724845589077,4.2260954,2528.2,2528.0,2.4757]
[1724845590088,4.2260954,2528.2,2527.8,2.5980733]
[1724845593787,4.2260954,2528.2,2527.8,0.1223733]
[1724845597497,4.2260954,2528.2,2527.9,2.4757]
[1724845597819,19.3138095,2528.8,2528.0,0.0791176]
[1724845597967,19.3138095,2528.8,2528.1,2.4757]
[1724845598172,19.3138095,2528.8,2528.1,2.63354849]
[1724845599880,7.0338095,2528.8,2528.1,2.63354849]
[1724845600180,7.0338095,2528.8,2528.3,2.4568]
[1724845603236,4.2260954,2528.6,2528.3,2.4568]
[1724845604139,9.2935095,2528.8,2528.3,2.4568]
[1724845605633,6.4857954,2528.8,2528.3,2.4568]
[1724845605840,9.2935095,2529.0,2528.3,2.4568]
[1724845606013,7.0338095,2529.0,2528.3,2.4568]
[1724845607643,4.2260954,2528.7,2527.9,2.4568]
[1724845608153,4.2260954,2528.7,2528.0,0.15784924]
[1724845609004,4.2260954,2528.7,2528.1,2.4568]
[1724845609205,4.2260954,2528.7,2528.1,2.61410339]
[1724845610539,4.2260954,2528.4,2528.1,0.15730339]
[1724845610708,2.2597,2528.3,2527.8,0.1223733]
[1724845610913,0.64857954,2528.2,2527.9,0.15697971]
[1724845612446,4.87467494,2528.2,2527.9,0.15697971]
[1724845612741,4.2260954,2528.2,2527.9,0.15697971]
[1724845615047,4.2260954,2528.0,2527.9,0.15697971]
[1724845615738,4.2260954,2528.0,2527.8,0.1223733]